bitfinex-derivatives/quotes_ETHF0:USTF0_20260112
["timestamp","ask_amount","ask_price","bid_price","bid_amount"]
[1768191098836,1.89659476,3155.5,3154.2,1.18546803]
[1768191099036,0.93068497,3155.4,3154.2,1.18546803]
[1768191099532,0.93068497,3155.4,3154.2,0.21955824]
[1768191099732,0.93068497,3155.4,3154.2,1.18546803]
[1768191102138,0.96590979,3155.8,3154.4,1.18140512]
[1768191102339,0.93046732,3155.7,3154.5,0.21549533]
[1768191102540,0.93046732,3155.6,3154.5,0.21549533]
[1768191102841,0.93046732,3155.5,3154.5,0.21549533]
[1768191103042,0.96590979,3155.8,3154.5,0.21549533]
[1768191103233,0.93038174,3155.7,3154.5,0.21549533]
[1768191103432,0.93038174,3155.6,3154.5,0.21549533]
[1768191103639,0.93038174,3155.5,3154.5,0.21549533]
[1768191103838,0.93038174,3155.4,3154.5,0.21549533]
[1768191104039,0.96590979,3155.8,3154.5,0.21549533]
[1768191104239,0.93032259,3155.7,3154.5,0.21549533]
[1768191104445,0.93032259,3155.6,3154.5,0.21549533]
[1768191104641,0.93032259,3155.5,3154.5,0.21549533]
[1768191104940,0.96590979,3155.8,3154.5,0.21549533]
[1768191105241,0.93032944,3155.7,3154.5,0.21549533]
[1768191105440,0.93032944,3155.6,3154.5,0.21549533]
[1768191105647,0.93032944,3155.5,3154.5,0.21549533]
[1768191105842,0.96590979,3155.8,3154.5,0.21549533]
[1768191106040,0.96590979,3155.6,3154.2,0.9699727]
[1768191106243,0.93030482,3155.5,3154.2,0.00406291]
[1768191106436,0.93030482,3155.5,3154.2,0.9699727]
[1768191108645,0.93030482,3155.5,3154.2,1.18546803]
[1768191113949,0.93030482,3155.5,3154.2,0.21955824]
[1768191114153,0.93030482,3155.5,3154.3,0.96590979]
[1768191115650,0.93030482,3155.5,3154.3,1.18140512]
[1768191116744,0.93030482,3155.5,3154.7,0.96590979]
[1768191116943,0.93030482,3155.4,3154.7,0.96590979]
[1768191117144,1.0,3156.2,3154.8,1.18140512]
[1768191117344,0.93333837,3156.1,3154.8,1.18140512]
[1768191117551,0.93333837,3156.0,3154.8,1.18140512]
[1768191118341,0.93333837,3156.0,3154.8,0.21549533]
[1768191118550,0.93333837,3156.0,3154.8,0.96590979]
[1768191118750,0.93333837,3155.9,3154.8,0.96590979]
[1768191118941,0.93333837,3155.8,3154.6,0.96590979]
[1768191119144,0.93333837,3155.7,3154.6,0.96590979]
[1768191119341,0.93333837,3155.6,3154.6,0.96590979]
[1768191119545,0.93333837,3155.5,3154.6,0.96590979]
[1768191119753,0.93333837,3155.4,3154.6,0.96590979]
[1768191120049,0.96590979,3156.0,3154.6,0.96590979]
[1768191120250,0.9345128,3155.9,3154.6,0.96590979]
[1768191120451,0.9345128,3155.8,3154.6,0.96590979]
[1768191120647,0.9345128,3155.7,3154.6,0.96590979]
[1768191120847,0.9345128,3155.6,3154.6,0.96590979]
[1768191121155,0.9345128,3155.5,3154.6,0.96590979]
[1768191121355,0.9345128,3155.4,3154.8,0.96590979]
[1768191121653,0.9345128,3155.3,3154.7,0.21549533]
[1768191121855,0.96590979,3156.0,3154.7,0.21549533]
[1768191122054,0.93564286,3155.9,3154.7,0.21549533]
[1768191122353,0.93564286,3155.8,3154.7,0.21549533]
[1768191122544,0.93564286,3155.7,3154.7,0.21549533]
[1768191122751,0.93564286,3155.6,3154.7,0.21549533]
[1768191122942,0.93564286,3155.5,3154.7,0.21549533]
[1768191123147,0.93564286,3155.4,3154.7,0.21549533]
[1768191123446,0.93564286,3155.3,3154.7,0.21549533]
[1768191123643,0.96590979,3156.1,3154.6,0.96590979]
[1768191123846,0.96590979,3155.9,3154.6,0.96590979]
[1768191124048,0.93553735,3155.8,3154.6,0.96590979]
[1768191125855,0.93553735,3155.8,3154.6,1.17962977]
[1768191126050,0.93553735,3155.8,3154.8,0.96590979]
[1768191126250,0.93553735,3155.7,3154.7,0.21371998]
[1768191126559,0.93553735,3155.6,3154.7,1.17962977]
[1768191126752,0.93553735,3155.5,3154.7,1.17962977]
[1768191126960,0.93553735,3155.4,3154.7,1.17962977]
[1768191127163,0.93553735,3155.3,3154.7,1.17962977]
[1768191127460,0.96590979,3156.1,3154.7,1.17962977]
[1768191127661,0.93554036,3156.0,3154.7,1.17962977]
[1768191127869,0.93554036,3155.9,3154.7,1.17962977]
[1768191128070,0.93554036,3155.8,3154.7,1.17962977]
[1768191128278,0.93554036,3155.7,3154.7,1.17962977]
[1768191128571,0.93554036,3155.6,3154.7,1.17962977]
[1768191128774,0.93554036,3155.5,3154.7,1.17962977]
[1768191128967,0.93554036,3155.4,3154.7,1.17962977]
[1768191129269,0.96590979,3156.1,3154.7,1.17962977]
[1768191129466,0.93554243,3156.0,3154.7,1.17962977]
[1768191129661,0.93554243,3155.9,3154.7,1.17962977]
[1768191129967,0.93554243,3155.8,3154.7,1.17962977]
[1768191130166,0.93554243,3155.7,3154.7,1.17962977]
[1768191130358,0.93554243,3155.6,3154.7,1.17962977]
[1768191130559,0.93554243,3155.5,3154.7,1.17962977]
[1768191130755,0.93554243,3155.4,3154.7,1.17962977]
[1768191130956,0.96590979,3156.1,3154.7,1.17962977]
[1768191131164,0.9354874,3156.0,3154.7,1.17962977]
[1768191131357,0.9354874,3155.9,3154.7,1.17962977]
[1768191131570,0.9354874,3155.8,3154.7,1.17962977]
[1768191131769,0.9354874,3155.7,3154.7,1.17962977]
[1768191131974,1.0,3156.2,3154.2,0.00406291]
[1768191131975,0.9354874,3155.6,3154.9,0.96590979]
[1768191132166,1.0,3156.2,3155.2,1.17830319]
[1768191132367,0.93542464,3156.1,3155.2,1.17830319]
[1768191132677,0.93542464,3156.0,3155.2,0.2123934]
[1768191132976,0.93542464,3155.9,3155.2,0.2123934]
[1768191133270,0.93542464,3155.8,3155.2,0.2123934]
[1768191133578,0.93542464,3155.7,3155.2,0.2123934]
[1768191133775,1.0,3156.2,3155.2,0.2123934]
[1768191133971,0.9358085,3156.1,3155.2,0.2123934]
[1768191134175,0.9358085,3156.0,3155.2,0.2123934]
[1768191134376,0.9358085,3155.9,3155.2,0.2123934]
[1768191134578,0.9358085,3155.8,3155.2,0.2123934]
[1768191134766,1.0,3156.2,3155.2,0.2123934]
[1768191134968,0.93558302,3156.1,3155.2,0.2123934]
[1768191135167,0.93558302,3156.0,3155.2,0.2123934]
[1768191135370,1.0,3156.2,3155.2,0.2123934]
[1768191135669,0.93531009,3156.1,3155.2,0.2123934]
[1768191135869,0.93531009,3156.0,3155.2,0.2123934]
[1768191136068,1.0,3156.2,3155.2,0.2123934]
[1768191136268,0.93555718,3156.1,3155.2,0.2123934]
[1768191136471,0.93555718,3156.0,3155.2,0.2123934]
[1768191136670,1.0,3156.2,3155.2,0.2123934]
[1768191136871,0.93523938,3156.1,3155.2,0.2123934]
[1768191137175,1.0,3156.2,3155.2,0.2123934]
[1768191138778,1.0,3156.2,3155.3,0.2123934]
[1768191139076,0.00359738,3156.5,3155.6,0.2123934]
[1768191140583,0.00359738,3156.5,3155.6,0.3710534]
[1768191140983,0.00359738,3156.5,3155.7,0.2123934]
[1768191141374,0.22132878,3157.6,3155.7,0.2123934]
[1768191141575,0.93344646,3157.5,3155.7,0.2123934]
[1768191141873,0.93344646,3157.4,3155.7,0.2123934]
[1768191142175,0.93344646,3157.3,3155.7,0.2123934]
[1768191142374,0.93344646,3157.2,3155.7,0.2123934]
[1768191142575,0.93344646,3157.1,3155.7,0.2123934]
[1768191142775,0.00355159,3157.2,3155.7,0.2123934]
[1768191142981,0.93334136,3157.1,3155.7,0.2123934]
[1768191143282,0.00355159,3157.2,3155.7,0.2123934]
[1768191143482,0.00355159,3157.2,3155.7,0.3710534]
[1768191143676,0.00355159,3157.2,3155.9,0.2123934]
[1768191144384,0.00355159,3157.2,3156.0,0.15864]
[1768191144579,0.00355159,3157.2,3156.1,0.2123934]
[1768191145279,0.00355159,3157.2,3156.3,0.2123934]
[1768191146990,0.96598679,3158.4,3156.3,0.2123934]
[1768191146991,0.22132878,3158.4,3156.8,0.2123934]
[1768191147184,1.15173883,3158.3,3156.8,0.2123934]
[1768191147381,0.93041005,3158.2,3156.8,0.2123934]
[1768191147582,0.93041005,3158.1,3156.8,0.2123934]
[1768191147782,0.93041005,3158.0,3156.8,0.2123934]
[1768191148082,0.93041005,3157.9,3156.8,0.21626594]
[1768191148277,0.00391094,3158.0,3156.8,0.21626594]
[1768191154491,0.00391094,3158.0,3157.1,0.2085013]
[1768191156487,0.00391094,3158.0,3157.1,2.6825013]
[1768191156690,0.00391094,3158.0,3157.2,0.2085013]
[1768191157796,0.00391094,3158.0,3156.9,0.1586]
[1768191157993,0.00391094,3158.0,3156.9,2.6346]
[1768191158293,0.00391094,3158.0,3157.0,0.2085013]
[1768191161494,0.00391094,3158.0,3157.0,0.3670913]
[1768191161692,0.00391094,3158.0,3157.1,0.2085013]
[1768191161896,0.22200232,3158.9,3157.1,0.2085013]
[1768191162096,1.15146234,3158.8,3157.1,0.2085013]
[1768191162299,0.92946002,3158.7,3157.1,0.2085013]
[1768191162601,0.92946002,3158.6,3157.4,0.2085013]
[1768191162900,0.92946002,3158.5,3157.4,0.2085013]
[1768191163289,7.03405701,3160.0,3158.4,0.96598679]
[1768191163487,0.47204177,3160.0,3158.4,0.96598679]
[1768191163690,0.22200232,3160.0,3158.4,0.96598679]
[1768191163887,0.22200232,3160.0,3158.4,1.17448809]
[1768191164292,0.22200232,3159.8,3157.9,0.2085013]
[1768191164503,0.22200232,3159.8,3158.0,1.6185013]
[1768191164703,0.22200232,3159.8,3158.1,0.2085013]
[1768191164999,0.00272567,3160.0,3158.1,0.2085013]
[1768191165595,0.96598679,3159.9,3158.1,0.2085013]
[1768191166400,1.18798911,3159.9,3158.1,0.2085013]
[1768191166900,1.18798911,3159.9,3158.2,0.2085013]
[1768191167302,0.00272567,3160.0,3158.2,0.2085013]
[1768191172201,0.00272567,3160.0,3158.5,0.2085013]
[1768191175405,0.91246873,3159.9,3158.5,0.2085013]
[1768191175599,0.24473783,3159.8,3158.9,0.2085013]
[1768191175804,0.22200232,3160.5,3159.2,0.96598679]
[1768191175999,0.22200232,3160.5,3158.7,0.15851]
[1768191176204,0.22200232,3160.1,3158.8,5.653]
[1768191176799,0.22490679,3160.1,3158.8,5.65602731]
[1768191177203,0.22200232,3160.0,3158.8,5.65602731]
[1768191178102,0.22200232,3160.0,3158.8,0.00302731]
[1768191178299,0.22200232,3160.0,3158.8,2.48402731]
[1768191178904,0.22200232,3160.0,3158.8,3.4500141]
[1768191178905,0.2474635,3160.0,3158.8,3.4500141]
[1768191186709,2.82099175,3161.7,3159.4,0.15847]
[1768191186910,3.96302581,3162.0,3159.6,0.15846]
[1768191186911,0.22250762,3161.4,3159.6,0.15846]
[1768191187116,0.22250762,3161.3,3159.7,4.136]
[1768191187614,0.22250762,3161.3,3159.7,5.10198679]
[1768191187815,0.22492359,3161.3,3159.7,5.10198679]
[1768191188208,0.22492359,3161.3,3159.7,0.96598679]
[1768191188411,0.22492359,3161.3,3159.8,5.643]
[1768191189212,0.22492359,3161.3,3160.1,0.96598679]
[1768191189416,0.44448011,3160.8,3160.2,0.96598679]
[1768191189716,0.00241597,3161.3,3160.2,0.96598679]
[1768191191920,0.00241597,3161.3,3160.3,5.649]
[1768191192918,0.00241597,3161.3,3160.4,5.65]
[1768191193121,0.22338279,3161.3,3160.2,0.15843]
[1768191193326,0.22338279,3161.3,3160.3,2.483]
[1768191193526,1.18627711,3161.3,3159.6,40.8]
[1768191193728,0.22096682,3161.0,3159.9,0.96289432]
[1768191194024,0.22096682,3161.0,3160.1,0.96289432]
[1768191194224,1.18386114,3161.0,3159.8,0.96289432]
[1768191194424,0.96289432,3160.4,3159.1,0.96289432]
[1768191194626,0.22096682,3160.3,3158.9,3.168]
[1768191194825,0.22096682,3160.3,3159.0,2.484]
[1768191195128,0.22096682,3160.3,3159.1,0.96289432]
[1768191195325,0.22096682,3160.3,3159.3,0.96289432]
[1768191195520,0.22096682,3160.3,3159.0,2.484]
[1768191195718,0.22096682,3160.3,3159.2,0.96289432]
[1768191196629,0.22096682,3160.3,3159.0,2.484]
[1768191196829,0.22096682,3160.3,3159.1,0.96289432]
[1768191197925,0.22096682,3160.3,3159.3,0.96289432]
[1768191199032,0.22096682,3160.3,3159.3,3.45189432]
[1768191200524,0.22096682,3160.3,3159.3,2.489]
[1768191200722,0.22096682,3160.3,3159.3,3.45189432]
[1768191201736,0.22096682,3160.6,3159.3,2.489]
[1768191202035,0.22096682,3160.6,3159.3,3.45189432]
[1768191202432,0.22096682,3160.6,3159.3,2.489]
[1768191204036,0.22096682,3160.6,3159.4,0.96289432]
[1768191205237,0.22096682,3160.5,3159.3,2.489]
[1768191208138,0.22096682,3160.5,3159.4,0.96289432]
[1768191208738,0.22096682,3160.5,3159.3,2.489]
[1768191210833,0.22096682,3160.3,3159.2,2.486]
[1768191212851,0.22096682,3161.0,3159.3,0.96289432]
[1768191213141,0.96289432,3160.7,3159.3,0.96289432]
[1768191213346,0.22096682,3160.6,3159.3,0.96289432]
[1768191214644,0.22096682,3160.6,3159.2,2.486]
[1768191214839,0.23697877,3160.5,3159.3,0.96289432]
[1768191215847,0.23697877,3160.5,3159.2,2.486]
[1768191216039,0.23697877,3160.5,3159.3,0.96289432]
[1768191218544,0.23697877,3160.5,3159.2,2.486]
[1768191218751,0.23697877,3160.5,3159.3,0.96289432]
[1768191226544,0.23697877,3160.5,3159.2,2.486]
[1768191226741,0.23697877,3160.5,3159.3,0.96289432]
[1768191227851,0.23697877,3160.5,3159.5,0.96289432]
[1768191229846,0.23697877,3160.5,3159.2,2.486]
[1768191230051,0.23697877,3160.5,3159.4,0.96289432]
[1768191230444,0.23697877,3160.9,3159.7,0.96289432]
[1768191232647,0.23939474,3161.3,3160.1,0.96289432]
[1768191234253,0.23697877,3161.1,3159.9,0.96289432]
[1768191234854,1.19987309,3161.0,3159.5,0.15847]
[1768191235049,1.19987309,3160.8,3159.5,0.15847]
[1768191235244,1.19987309,3160.8,3159.6,2.474]
[1768191236052,0.23697877,3160.5,3159.4,3.43689432]
[1768191236952,0.23697877,3160.5,3159.6,0.96289432]
[1768191237450,0.96289432,3160.8,3159.6,0.96289432]
[1768191237651,0.23697877,3160.9,3160.0,0.96289432]
[1768191238053,0.23697877,3160.9,3159.8,0.96289432]
[1768191238251,0.23697877,3160.9,3159.2,0.03654918]
[1768191238553,0.23697877,3160.9,3159.7,0.96289432]
[1768191239655,0.23939474,3161.3,3160.3,0.96289432]
[1768191240156,0.23939474,3161.3,3159.9,0.96289432]
[1768191240358,0.23939474,3161.3,3160.3,0.96289432]
[1768191241355,0.23939474,3161.3,3160.1,0.96289432]
[1768191242950,0.23697877,3161.2,3159.9,3.43189432]
[1768191243361,0.23697877,3161.2,3159.9,0.96289432]
[1768191243752,0.23697877,3161.2,3159.7,0.15846]
[1768191243959,0.96531029,3161.3,3159.5,0.96289432]
[1768191243960,0.23697877,3160.8,3159.5,0.96289432]
[1768191244458,0.23697877,3160.8,3159.7,0.96289432]
[1768191246956,0.23697877,3160.8,3159.9,0.96289432]
[1768191247755,0.24060963,3161.2,3159.9,0.96289432]
[1768191251069,0.24060963,3161.2,3160.3,0.96289432]
[1768191251262,0.00241597,3161.3,3160.3,0.96289432]
[1768191251466,0.00241597,3161.3,3160.5,0.96289432]
[1768191252161,0.00241597,3161.3,3160.9,0.96289432]
[1768191252464,0.00241597,3161.3,3160.7,0.96289432]
[1768191253268,0.00241597,3161.3,3160.2,1.96543]
[1768191253471,0.00241597,3161.3,3160.2,2.92806238]
[1768191255576,0.23619696,3162.0,3160.3,0.04499383]
[1768191255873,0.23619696,3162.6,3160.7,0.96263238]
[1768191256360,0.23919262,3162.6,3160.7,0.96263238]
[1768191257162,0.23919262,3162.6,3160.4,0.15842]
[1768191257367,0.23619696,3161.8,3159.9,3.168]
[1768191257562,0.23619696,3161.8,3159.7,0.15846]
[1768191257868,0.23619696,3161.8,3159.8,2.459]
[1768191262675,0.23619696,3161.8,3159.7,0.15846]
[1768191262973,0.23619696,3161.7,3159.7,0.15846]
[1768191264468,0.39455696,3161.7,3159.3,44.21663238]
[1768191264661,0.23619696,3161.6,3159.3,41.76263238]
[1768191264860,0.15836,3161.7,3159.3,47.38463238]
[1768191264861,0.23619696,3161.3,3159.3,47.38463238]
[1768191267262,0.23619696,3161.3,3159.3,6.58463238]
[1768191267772,0.23619696,3161.3,3159.4,2.459]
[1768191273266,0.23619696,3161.3,3159.7,0.96263238]
[1768191274981,0.23619696,3161.3,3159.8,0.05682853]
[1768191276986,0.23619696,3161.3,3160.1,0.96263238]
[1768191277179,0.23619696,3161.3,3160.1,3.43463238]
[1768191278774,0.24546388,3162.0,3160.1,3.43463238]
[1768191279780,0.24546388,3162.0,3160.1,2.472]
[1768191279982,0.24546388,3161.9,3160.1,2.472]
[1768191281776,0.24546388,3161.3,3159.7,0.15846]
[1768191281983,0.24546388,3161.3,3159.7,2.62746]
[1768191283070,0.24546388,3161.3,3158.9,40.8]
[1768191283281,0.24546388,3161.3,3159.2,0.15848]
[1768191283982,0.24546388,3161.3,3159.4,0.96263238]
[1768191285680,0.24546388,3161.3,3159.8,0.96263238]
[1768191285879,3.96302581,3162.0,3159.8,0.96263238]
[1768191285880,0.24546388,3161.7,3160.2,0.96263238]
[1768191286985,0.24546388,3161.7,3160.6,0.96263238]
[1768191288188,3.96602147,3162.6,3160.6,0.96263238]
[1768191288189,0.24546388,3162.1,3160.6,0.96263238]
[1768191289389,0.24845954,3162.6,3160.6,0.96263238]
[1768191289586,0.24546388,3162.0,3159.5,6.06543895]
[1768191289787,0.24546388,3162.0,3160.0,2.283]
[1768191290089,0.24546388,3162.0,3160.2,0.96263238]
[1768191294389,0.24546388,3162.0,3160.3,0.05893807]
[1768191295696,0.24546388,3162.0,3160.3,0.21736807]
[1768191299706,0.24546388,3162.0,3160.4,2.458]
[1768191300502,0.24546388,3161.7,3159.6,0.15846]
[1768191300701,0.24546388,3161.7,3159.7,5.626]
[1768191301005,0.24546388,3161.7,3159.8,0.15845]
[1768191301203,0.24546388,3161.7,3160.4,0.96263238]
[1768191301607,0.24546388,3162.1,3160.4,0.96263238]
[1768191301801,0.24546388,3162.1,3160.1,0.15844]
[1768191304611,0.24546388,3162.1,3160.1,1.12107238]
[1768191305006,0.24546388,3162.1,3160.1,3.57607238]
[1768191306298,0.24546388,3162.1,3160.1,1.12107238]
[1768191306502,0.24546388,3162.1,3160.1,3.57507238]
[1768191310415,0.24546388,3162.1,3160.2,0.15843]
[1768191312312,0.24546388,3162.1,3160.2,0.22920318]
[1768191313318,0.24546388,3162.1,3160.8,0.9625367]
[1768191313717,0.24546388,3162.1,3161.0,0.9625367]
[1768191314020,0.24546388,3162.1,3160.8,0.9625367]
[1768191315820,0.24546388,3162.1,3161.3,0.9625367]
[1768191316018,0.23734312,3162.4,3161.3,0.00326852]
[1768191316718,0.23734312,3162.4,3161.6,0.9625367]
[1768191317119,0.23734312,3162.4,3161.4,0.9625367]
[1768191317322,0.00299566,3162.6,3161.6,0.9625367]
[1768191317819,0.00299566,3162.6,3161.8,0.9625367]
[1768191319615,0.00299566,3162.6,3161.4,0.9625367]
[1768191321113,0.24033878,3162.6,3161.4,0.9625367]
[1768191321417,0.24033878,3162.6,3161.3,0.00326852]
[1768191321418,1.19987982,3162.3,3161.3,0.00326852]
[1768191321821,0.23734312,3162.3,3161.3,0.00326852]
[1768191326526,0.00299566,3162.6,3161.4,0.9625367]
[1768191326918,0.00299566,3162.6,3161.8,0.9625367]
[1768191327323,0.00299566,3162.6,3161.6,0.9625367]
[1768191327915,0.00299566,3162.6,3161.4,0.9625367]
[1768191328126,0.24033878,3162.6,3161.3,0.00326852]
[1768191328327,0.23734312,3162.4,3161.3,0.00326852]
[1768191328628,0.23734312,3162.2,3161.3,0.00326852]
[1768191329126,0.23734312,3161.8,3160.6,0.9625367]
[1768191329821,0.23734312,3161.8,3160.8,0.9625367]
[1768191330221,0.23734312,3161.8,3160.8,0.96599778]
[1768191332628,0.23734312,3161.8,3161.0,0.9625367]
[1768191333624,1.19987982,3162.3,3161.0,0.9625367]
[1768191333830,0.23734312,3162.3,3161.0,0.9625367]
[1768191334134,0.00299566,3162.6,3161.6,0.9625367]
[1768191336737,0.00299566,3162.6,3160.8,1.20358222]
[1768191336738,1.22373251,3162.6,3161.2,0.9625367]
[1768191337033,0.9625367,3162.0,3160.9,0.1584]
[1768191337337,0.25820015,3162.1,3160.8,0.96599778]
[1768191338831,0.25820015,3161.7,3160.8,0.00346108]
[1768191340133,0.25820015,3162.2,3161.1,0.9625367]
[1768191340433,0.00299566,3162.6,3161.5,0.9625367]
[1768191340434,0.26119581,3162.6,3161.5,0.9625367]
[1768191340934,0.00299566,3162.6,3161.9,0.9625367]
[1768191341134,0.00299566,3162.6,3161.7,0.9625367]
[1768191344629,0.00299566,3162.6,3161.3,2.428]
[1768191344827,0.00299566,3162.6,3161.7,0.9625367]
[1768191345330,0.00299566,3162.6,3161.6,0.9625367]
[1768191347237,0.96553236,3162.6,3161.1,0.15839]
[1768191347442,0.9625367,3162.0,3160.8,0.00346108]
[1768191347643,1.22073685,3162.0,3160.8,0.96599778]
[1768191347939,0.25820015,3162.0,3160.8,0.96599778]
[1768191348437,1.22073685,3162.0,3160.8,0.00346108]
[1768191348639,0.25820015,3162.0,3160.8,0.00346108]
[1768191348837,0.25820015,3162.0,3160.9,0.9625367]
[1768191351344,0.25820015,3162.0,3160.8,0.00346108]
[1768191359251,0.25820015,3162.0,3160.8,2.45646108]
[1768191359455,0.25820015,3162.0,3160.8,0.00346108]
[1768191373273,0.25820015,3162.0,3160.8,0.96600654]
[1768191373666,0.25820015,3162.0,3160.8,0.00346108]
[1768191373866,0.25820015,3162.0,3160.8,0.96600654]
[1768191375270,0.25820015,3162.0,3160.8,0.00346108]
[1768191384374,0.25820015,3162.0,3160.1,0.15844]
[1768191385071,0.2572849,3161.6,3159.7,2.436]
[1768191385277,0.2572849,3161.6,3159.6,2.436]
[1768191385478,0.2572849,3161.6,3159.6,2.43936193]
[1768191385870,0.2572849,3161.6,3159.6,2.59782193]
[1768191386071,0.2572849,3161.6,3159.6,0.16182193]
[1768191386377,0.2572849,3161.1,3159.6,0.00336193]
[1768191407493,0.24276742,3160.9,3159.6,0.00336193]
[1768191416601,0.24276742,3160.8,3158.9,3.168]
[1768191416798,0.24276742,3160.8,3159.0,2.416]
[1768191417702,0.24276742,3160.8,3159.0,2.41886567]
[1768191419508,0.24276742,3160.8,3159.0,0.00286567]
[1768191419694,0.24276742,3160.8,3159.1,2.421]
[1768191422998,0.24276742,3160.8,3159.1,3.38352509]
[1768191426905,0.24276742,3160.8,3159.0,0.00286567]
[1768191427204,0.24276742,3160.8,3159.1,2.421]
[1768191432208,0.25307144,3160.0,3158.2,6.83796765]
[1768191432404,0.25307144,3160.0,3158.3,2.418]
[1768191432800,0.25307144,3160.0,3158.2,2.57653]
[1768191433302,0.25553443,3160.0,3158.2,2.57962609]
[1768191433604,0.25553443,3160.0,3158.2,0.16162609]
[1768191433804,0.25553443,3160.0,3158.2,0.00309609]
[1768191434011,0.25307144,3159.8,3158.2,0.00309609]
[1768191434205,0.25307144,3159.8,3158.3,0.96252509]
[1768191435300,0.25307144,3159.8,3158.9,0.96369926]
[1768191435501,0.00246299,3160.0,3159.3,0.96369926]
[1768191435709,0.00246299,3160.0,3158.2,0.00309609]
[1768191435710,0.25307144,3160.6,3159.7,0.96369926]
[1768191435912,0.25307144,3160.6,3159.3,0.96369926]
[1768191436808,0.25717224,3160.6,3159.3,0.96369926]
[1768191438514,0.25717224,3160.6,3159.5,0.96369926]
[1768191438707,0.25717224,3160.6,3159.7,0.96369926]
[1768191439610,0.25717224,3160.6,3159.3,0.96369926]
[1768191440018,0.25717224,3160.6,3159.7,0.96369926]
[1768191440707,0.25717224,3160.6,3159.0,0.96369926]
[1768191440907,0.25717224,3160.6,3159.7,0.96369926]
[1768191445319,0.25717224,3160.6,3159.5,0.96369926]
[1768191452025,0.25717224,3160.6,3159.0,0.15849]
[1768191452026,0.25307144,3160.2,3159.0,0.15849]
[1768191452628,0.25307144,3160.2,3159.1,0.96369926]
[1768191455228,0.25307144,3160.2,3159.2,0.96369926]
[1768191456442,0.25307144,3160.2,3159.0,0.96369926]
[1768191456745,0.25307144,3160.2,3158.8,0.96369926]
[1768191457949,0.24269721,3159.8,3158.5,0.15852]
[1768191458248,0.24269721,3159.8,3158.5,1.12221926]
[1768191458442,1.20639647,3159.7,3158.4,0.96369926]
[1768191458950,0.96369926,3159.5,3158.2,0.96679535]
[1768191459244,0.24269721,3159.2,3158.2,0.00309609]
[1768191459646,0.24269721,3159.2,3158.2,0.96679535]
[1768191461751,0.24269721,3159.2,3158.2,0.00309609]
[1768191466456,0.24269721,3159.0,3158.2,0.00309609]
[1768191471955,0.24269721,3159.7,3158.2,0.96679535]
[1768191472156,0.24269721,3159.5,3158.2,0.96679535]
[1768191472754,0.24269721,3159.5,3158.4,0.96369926]
[1768191474049,0.24269721,3159.5,3158.2,0.96679535]
[1768191474249,0.96369926,3159.4,3158.2,0.96679535]
[1768191476657,1.20639647,3159.4,3158.2,0.96679535]
[1768191478047,0.24269721,3159.4,3158.2,0.96679535]
[1768191479862,0.24269721,3159.8,3158.9,0.96369926]
[1768191480360,0.24269721,3160.2,3159.2,0.96369926]
[1768191480562,0.24269721,3160.2,3159.1,0.96369926]
[1768191482054,0.24269721,3160.2,3158.9,0.96369926]
[1768191482659,0.24269721,3160.2,3159.1,0.96369926]
[1768191483272,0.24269721,3160.2,3159.3,0.96369926]
[1768191483863,0.24679801,3160.6,3159.5,0.96369926]
[1768191484057,0.24679801,3160.6,3159.3,0.96369926]
[1768191484657,0.24679801,3160.6,3159.5,0.96369926]
[1768191484859,0.24679801,3160.6,3159.3,0.96369926]
[1768191488051,0.0041008,3160.6,3159.9,0.96369926]
[1768191490558,0.0041008,3160.6,3159.7,0.96369926]
[1768191490967,0.0041008,3160.6,3159.5,0.96369926]
[1768191495469,0.0041008,3160.6,3159.7,0.96369926]
[1768191497269,0.0041008,3160.6,3159.3,1.1216019]
[1768191498474,0.0041008,3160.6,3159.4,0.15847]
[1768191498673,0.0041008,3160.6,3159.4,0.21671632]
[1768191500372,0.25442021,3161.1,3159.7,0.9631219]
[1768191500768,0.25442021,3161.1,3159.6,0.15846]
[1768191501163,0.25812655,3161.1,3159.6,0.15846]
[1768191518685,0.25812655,3161.1,3159.0,0.15849]
[1768191518986,0.24549802,3160.7,3159.0,0.15849]
[1768191519895,0.24549802,3160.7,3158.5,0.05783677]
[1768191520193,0.24549802,3160.7,3158.6,5.537]
[1768191524489,0.24549802,3160.7,3158.9,0.9631219]
[1768191526294,0.24549802,3160.7,3158.9,1.1216219]
[1768191526486,0.24549802,3160.7,3158.9,1.17280629]
[1768191527597,0.24549802,3160.7,3158.9,1.1216219]
[1768191527791,0.24549802,3160.7,3158.9,6.6546219]
[1768191528190,0.24549802,3160.7,3158.9,1.1216219]
[1768191528390,0.24549802,3160.7,3158.9,3.4846219]
[1768191538300,0.24549802,3160.2,3158.4,2.357]
[1768191538506,0.24549802,3160.2,3158.4,3.3201219]
[1768191539104,0.24549802,3160.2,3158.4,0.9631219]
[1768191539404,0.24549802,3160.2,3158.2,0.04900112]
[1768191539405,0.24549802,3160.2,3158.8,0.9631219]
[1768191540608,0.24549802,3160.2,3158.8,1.1216219]
[1768191546108,0.24549802,3160.2,3158.8,0.1585]
[1768191550112,0.24549802,3160.2,3158.9,0.1585]
[1768191550303,0.24549802,3160.2,3159.0,1.1216119]
[1768191553419,0.26362716,3160.6,3159.0,1.1216119]
[1768191557324,0.26362716,3160.6,3159.3,0.96334601]
[1768191567519,0.26362716,3160.6,3159.5,0.96334601]
[1768191567820,0.26362716,3161.0,3160.0,0.96334601]
[1768191568022,0.26362716,3161.0,3159.8,0.96334601]
[1768191572527,0.26362716,3160.9,3159.4,0.15847]
[1768191572721,0.26362716,3160.7,3159.5,0.96334601]
[1768191575032,0.96334601,3160.6,3159.4,0.15847]
[1768191575236,0.24929518,3160.5,3159.4,0.15847]
[1768191585344,0.24929518,3160.3,3158.9,6.01679988]
[1768191585539,0.24929518,3160.3,3159.0,2.33]
[1768191585735,0.24929518,3160.3,3158.9,3.29234601]
[1768191586146,0.24929518,3159.7,3158.7,0.15851]
[1768191590543,0.96334601,3159.3,3158.2,0.00309609]
[1768191590848,0.24929518,3159.3,3158.3,2.338]
[1768191591950,0.24929518,3159.3,3158.4,2.341]
[1768191594454,0.24929518,3159.3,3158.4,2.345]
[1768191595248,0.24929518,3159.3,3158.4,2.344]
[1768191598555,0.24929518,3159.3,3158.2,0.00309609]
[1768191598762,0.24929518,3159.2,3158.2,2.34509609]
[1768191600356,0.24929518,3159.2,3158.2,0.00309609]
[1768191600752,0.96334601,3159.9,3158.2,0.00309609]
[1768191600753,0.24929518,3159.0,3158.2,0.00309609]
[1768191601550,0.24929518,3158.6,3158.2,0.00309609]
[1768191601754,0.24929518,3158.6,3157.3,1.12192601]
[1768191602050,0.24929518,3158.6,3157.5,0.96334601]
[1768191602649,0.25163695,3158.6,3157.7,0.96334601]
[1768191606450,0.25163695,3158.6,3157.6,0.96334601]
[1768191606851,0.25163695,3158.6,3157.5,2.35281081]
[1768191607055,0.25163695,3158.6,3157.7,0.96334601]
[1768191610259,0.25163695,3158.6,3157.5,2.35281081]
[1768191610260,0.2467828,3158.4,3157.5,0.00281081]